[Event "Slovakia Open Piestany-A 2022"]
[Site "Piestany"]
[Date "2022.07.12"]
[Round "1.15"]
[White "Drtina, Milan"]
[Black "Moksh Amit Doshi"]
[Result "1/2-1/2"]
[ECO "B54"]
[WhiteElo "2167"]
[BlackElo "2409"]
[Annotator "ChessBase"]
[PlyCount "131"]
[EventDate "2022.07.12"]
[EventType "swiss"]
[EventCountry "SVK"]
[SourceTitle "playchess.com"]
[Source "ChessBase"]
[SourceQuality "1"]
[TimeControl "40/5400+30:1800+30"]

1. e4 {[%emt 1:31:00]} c5 {[%emt 1:31:00]} 2. c4 {[%emt 0:00:30]} Nc6 {[%emt 0:00:30]} 3. Nf3 {[%emt 0:00:30]} d6 {[%emt 0:00:30]} 4. d4 {[%emt 0:00:30]} cxd4 {[%emt 0:00:30]} 5. Nxd4 {[%emt 0:00:30]} Nf6 {[%emt 0:00:30]} 6. Nc3 {[%emt 0:00:30]} e6 {[%emt 0:00:30]} 7. Be2 {[%emt 0:00:30]} Be7 {[%emt 0:00:30]} 8. O-O {[%emt 0:00:30]} O-O {[%emt 0:00:30]} 9. Be3 {[%emt 0:00:30]} Bd7 {[%emt 0:00:30]} 10. Kh1 {[%emt 0:00:30]} a6 {[%emt 0:00:30]} 11. f4 {[%emt 0:00:30]} Rc8 {[%emt 0:00:30]} 12. Rc1 {[%emt 0:00:30]} Qa5 {[%emt 0:00:30]} 13. Nb3 {[%emt 0:00:30]} Qc7 {[%emt 0:00:30]} 14. c5 {[%emt 0:00:30]} dxc5 {[%emt 0:00:30]} 15. e5 {[%emt 0:00:30]} Nd5 {[%emt 0:00:30]} 16. Nxd5 {[%emt 0:00:30]} exd5 {[%emt 0:00:30]} 17. Bxc5 {[%emt 0:00:30]} Bxc5 {[%emt 0:00:30]} 18. Rxc5 {[%emt 0:00:30]} Qb6 {[%emt 0:00:30]} 19. Rxd5 {[%emt 0:00:30]} Be6 {[%emt 0:00:30]} 20. Rd6 {[%emt 0:00:30]} Rfd8 {[%emt 0:00:30]} 21. Bg4 {[%emt 0:00:30]} Rxd6 {[%emt 0:00:30]} 22. exd6 {[%emt 0:00:30]} f5 {[%emt 0:00:30]} 23. Bxf5 {[%emt 0:00:30]} Bxf5 {[%emt 0:00:30]} 24. Qd5+ {[%emt 0:00:30]} Kh8 {[%emt 0:00:30]} 25. Qxf5 {[%emt 0:00:30]} Rd8 {[%emt 0:00:30]} 26. Rd1 {[%emt 0:00:30]} Qf2 {[%emt 0:00:30]} 27. h3 {[%emt 0:00:30]} Qxb2 {[%emt 0:00:30]} 28. Nc5 {[%emt 0:00:30]} Qe2 {[%emt 0:00:30]} 29. Qd3 {[%emt 0:00:30]} Qxd3 {[%emt 0:00:30]} 30. Rxd3 {[%emt 0:00:30]} b6 {[%emt 0:00:30]} 31. Nxa6 {[%emt 0:00:30]} Kg8 {[%emt 0:00:30]} 32. Nc7 {[%emt 0:00:30]} Kf7 {[%emt 0:00:30]} 33. g4 {[%emt 0:00:30]} Rd7 {[%emt 0:00:30]} 34. Kg2 {[%emt 0:00:30]} Na5 {[%emt 0:00:30]} 35. Kf3 {[%emt 0:00:30]} Nc4 {[%emt 0:00:30]} 36. Nb5 {[%emt 0:00:30]} Ke6 {[%emt 0:00:30]} 37. Ke4 {[%emt 0:00:30]} Rd8 {[%emt 0:00:30]} 38. Rd4 {[%emt 0:00:30]} Na5 {[%emt 0:00:30]} 39. Rd3 {[%emt 0:00:30]} Nb7 {[%emt 0:00:30]} 40. f5+ {[%emt 0:00:30]} Kd7 {[%emt 0:00:30]} 41. Kf4 {[%emt 0:30:30]} Nc5 {[%emt 0:30:30]} 42. Re3 {[%emt 0:00:30]} Kc6 {[%emt 0:00:30]} 43. Nd4+ {[%emt 0:00:30]} Kxd6 {[%emt 0:00:30]} 44. Ne6 {[%emt 0:00:30]} Ra8 {[%emt 0:00:30]} 45. a3 {[%emt 0:00:30]} Ra4+ {[%emt 0:00:30]} 46. Kf3 {[%emt 0:00:30]} Nxe6 {[%emt 0:00:30]} 47. Rxe6+ {[%emt 0:00:30]} Kd7 {[%emt 0:00:30]} 48. Re3 {[%emt 0:00:30]} Kd6 {[%emt 0:00:30]} 49. g5 {[%emt 0:00:30]} Ra5 {[%emt 0:00:30]} 50. Kg4 {[%emt 0:00:30]} Ra4+ {[%emt 0:00:30]} 51. Kh5 {[%emt 0:00:30]} Kd7 {[%emt 0:00:30]} 52. h4 {[%emt 0:00:30]} Rf4 {[%emt 0:00:30]} 53. Re5 {[%emt 0:00:30]} Rf3 {[%emt 0:00:30]} 54. a4 {[%emt 0:00:30]} Rf4 {[%emt 0:00:30]} 55. a5 {[%emt 0:00:30]} bxa5 {[%emt 0:00:30]} 56. Rxa5 {[%emt 0:00:30]} Ke7 {[%emt 0:00:30]} 57. Ra7+ {[%emt 0:00:30]} Kf8 {[%emt 0:00:30]} 58. Ra8+ {[%emt 0:00:30]} Ke7 {[%emt 0:00:30]} 59. Rh8 {[%emt 0:00:30]} Rxf5 {[%emt 0:00:30]} 60. Rxh7 {[%emt 0:00:30]} Kf7 {[%emt 0:00:30]} 61. Rh8 {[%emt 0:00:30]} Ra5 {[%emt 0:00:30]} 62. Rb8 {[%emt 0:00:30]} Rc5 {[%emt 0:00:30]} 63. Rb7+ {[%emt 0:00:30]} Kg8 {[%emt 0:00:30]} 64. Kg6 {[%emt 0:00:30]} Rc6+ {[%emt 0:00:30]} 65. Kf5 {[%emt 0:00:30]} Rc5+ {[%emt 0:00:30]} 66. Ke6 {[%emt 0:00:30]} 1/2-1/2

[Event "Slovakia Open Piestany-A 2022"]
[Site "Piestany"]
[Date "2022.07.12"]
[Round "1.16"]
[White "Kostolansky, Sebastian Lukas"]
[Black "Michelle Catherina, P."]
[Result "1-0"]
[ECO "C88"]
[WhiteElo "2406"]
[BlackElo "2141"]
[Annotator "ChessBase"]
[PlyCount "73"]
[EventDate "2022.07.12"]
[EventType "swiss"]
[EventCountry "SVK"]
[SourceTitle "playchess.com"]
[Source "ChessBase"]
[SourceQuality "1"]
[TimeControl "40/5400+30:1800+30"]

1. e4 {[%emt 0:00:03]} e5 {[%emt 0:01:10]} 2. Nf3 {[%emt 0:00:13]} Nc6 {[%emt 0:00:08]} 3. Bb5 {[%emt 0:00:13]} a6 {[%emt 0:00:18]} 4. Ba4 {[%emt 0:00:06]} Nf6 {[%emt 0:00:08]} 5. O-O {[%emt 0:00:07]} Be7 {[%emt 0:00:34]} 6. Re1 {[%emt 0:00:14]} b5 {[%emt 0:00:09]} 7. Bb3 {[%emt 0:00:06]} O-O {[%emt 0:00:06]} 8. a4 {[%emt 0:04:13]} Bb7 {[%emt 0:00:27]} 9. d3 {[%emt 0:00:49]} d6 {[%emt 0:00:29]} 10. Bd2 {[%emt 0:12:31]} b4 {[%emt 0:10:41]} 11. c3 {[%emt 0:00:22]} a5 {[%emt 0:04:41]} 12. d4 {[%emt 0:16:36]} bxc3 {[%emt 0:12:34]} 13. Bxc3 {[%emt 0:07:59]} exd4 {[%emt 0:18:27]} 14. Nxd4 {[%emt 0:00:06]} Nxd4 {[%emt 0:04:22]} 15. Qxd4 {[%emt 0:00:16]} c5 {[%emt 0:01:55]} 16. Qd3 {[%emt 0:04:49]} d5 {[%emt 0:05:25]} 17. exd5 {[%emt 0:07:19]} Bxd5 {[%emt 0:02:13]} 18. Bc2 {[%emt 0:03:18]} Be6 {[%emt 0:05:19]} 19. Qg3 {[%emt 0:03:21]} Qb8 {[%emt 0:08:17]} 20. Be5 {[%emt 0:16:00]} Qb4 {[%emt 0:04:38]} 21. Nc3 {[%emt 0:02:21]} Qg4 {[%emt 0:03:38]} 22. Qe3 {[%emt 0:03:16]} Qh5 {[%emt 0:07:09]} 23. Nb5 {[%emt 0:03:46]} Rad8 {[%emt 0:01:47]} 24. h3 {[%emt 0:07:33]} Nd5 {[%emt 0:03:33]} 25. Qg3 {[%emt 0:00:05]} g6 {[%emt 0:01:03]} 26. Be4 {[%emt 0:04:29]} Bh4 {[%emt 0:01:28]} 27. Qh2 {[%emt 0:00:03]} Qh6 {[%emt 0:02:01]} 28. Bd6 {[%emt 0:02:09]} Qd2 {[%emt 0:01:00]} 29. Bxc5 {[%emt 0:00:05]} Qxb2 {[%emt 0:00:48]} 30. Rab1 {[%emt 0:01:43]} Qa2 {[%emt 0:00:17]} 31. Bxd5 {[%emt 0:01:03]} Bxd5 {[%emt 0:00:37]} 32. Qf4 {[%emt 0:00:25]} g5 {[%emt 0:00:35]} 33. Qf6 {[%emt 0:00:17]} Be4 {[%emt 0:00:31]} 34. Bxf8 {[%emt 0:00:54]} Rxf8 {[%emt 0:00:02]} 35. Nc3 {[%emt 0:00:13]} Bxb1 {[%emt 0:00:56]} 36. Nxa2 {[%emt 0:00:07]} Bxa2 {[%emt 0:00:02]} 37. g3 {[%emt 0:00:10]} 1-0

[Event "Slovakia Open Piestany-A 2022"]
[Site "Piestany"]
[Date "2022.07.12"]
[Round "1.17"]
[White "Tripodi, Enzo"]
[Black "Pacher, Milan"]
[Result "1-0"]
[ECO "C68"]
[WhiteElo "2141"]
[BlackElo "2399"]
[Annotator "ChessBase"]
[PlyCount "79"]
[EventDate "2022.07.12"]
[EventType "swiss"]
[EventCountry "SVK"]
[SourceTitle "playchess.com"]
[Source "ChessBase"]
[SourceQuality "1"]
[TimeControl "40/5400+30:1800+30"]

1. e4 {[%emt 0:00:04]} e5 {[%emt 0:06:31]} 2. Nf3 {[%emt 0:00:06]} Nc6 {[%emt 0:00:03]} 3. Bb5 {[%emt 0:00:05]} a6 {[%emt 0:00:13]} 4. Bxc6 {[%emt 0:00:58]} dxc6 {[%emt 0:00:02]} 5. Nc3 {[%emt 0:00:52]} f6 {[%emt 0:00:26]} 6. d4 {[%emt 0:00:58]} exd4 {[%emt 0:00:03]} 7. Qxd4 {[%emt 0:00:11]} Qxd4 {[%emt 0:04:31]} 8. Nxd4 {[%emt 0:00:06]} Bd6 {[%emt 0:00:22]} 9. Be3 {[%emt 0:02:54]} Ne7 {[%emt 0:00:30]} 10. O-O-O {[%emt 0:01:48]} c5 {[%emt 0:07:07]} 11. Nde2 {[%emt 0:06:25]} Be6 {[%emt 0:01:12]} 12. f4 {[%emt 0:03:25]} O-O-O {[%emt 0:01:16]} 13. f5 {[%emt 0:09:20]} Bf7 {[%emt 0:00:04]} 14. g4 {[%emt 0:00:20]} g5 {[%emt 0:06:38]} 15. h4 {[%emt 0:01:55]} h6 {[%emt 0:00:04]} 16. Rh3 {[%emt 0:05:11]} Nc6 {[%emt 0:03:01]} 17. Rdh1 {[%emt 0:04:06]} Rhf8 {[%emt 0:04:43]} 18. hxg5 {[%emt 0:02:10]} hxg5 {[%emt 0:00:02]} 19. Rh6 {[%emt 0:03:03]} Ne5 {[%emt 0:01:26]} 20. Rg1 {[%emt 0:01:25]} Rh8 {[%emt 0:05:08]} 21. Rxf6 {[%emt 0:14:00]} Be7 {[%emt 0:00:14]} 22. Rxf7 {[%emt 0:00:18]} Nxf7 {[%emt 0:00:03]} 23. Nd5 {[%emt 0:02:48]} Bd6 {[%emt 0:00:35]} 24. b4 {[%emt 0:01:57]} Rh2 {[%emt 0:04:26]} 25. bxc5 {[%emt 0:00:43]} Rxe2 {[%emt 0:04:54]} 26. cxd6 {[%emt 0:00:05]} Rxd6 {[%emt 0:00:05]} 27. Bc5 {[%emt 0:01:01]} Rh6 {[%emt 0:00:05]} 28. Nc3 {[%emt 0:01:09]} Reh2 {[%emt 0:00:04]} 29. Nd5 {[%emt 0:03:10]} Ne5 {[%emt 0:07:02]} 30. Be3 {[%emt 0:01:49]} Re2 {[%emt 0:03:17]} 31. Bxg5 {[%emt 0:00:57]} Rh7 {[%emt 0:10:43]} 32. Bf4 {[%emt 0:04:01]} Rxe4 {[%emt 0:03:19]} 33. g5 {[%emt 0:02:09]} Rd7 {[%emt 0:03:44]} 34. Rd1 {[%emt 0:07:54]} Nc4 {[%emt 0:03:27]} 35. g6 {[%emt 0:01:16]} c6 {[%emt 0:08:49]} 36. f6 {[%emt 0:04:50]} cxd5 {[%emt 0:01:03]} 37. g7 {[%emt 0:02:57]} Re8 {[%emt 0:00:59]} 38. Rh1 {[%emt 0:00:37]} Rxg7 {[%emt 0:01:20]} 39. fxg7 {[%emt 0:00:06]} Kd7 {[%emt 0:00:02]} 40. Be5 {[%emt 0:03:41]} 1-0

[Event "Slovakia Open Piestany-A 2022"]
[Site "Piestany"]
[Date "2022.07.12"]
[Round "1.18"]
[White "Lewtak, Damian"]
[Black "Travnicek, Krystof Mikulas"]
[Result "1/2-1/2"]
[ECO "D00"]
[WhiteElo "2397"]
[BlackElo "2138"]
[Annotator "ChessBase"]
[PlyCount "124"]
[EventDate "2022.07.12"]
[EventType "swiss"]
[EventCountry "SVK"]
[SourceTitle "playchess.com"]
[Source "ChessBase"]
[SourceQuality "1"]
[TimeControl "40/5400+30:1800+30"]

1. d4 {[%emt 0:00:05]} d5 {[%emt 0:00:19]} 2. c3 {[%emt 0:00:05]} Nf6 {[%emt 0:00:58]} 3. Bf4 {[%emt 0:00:06]} e6 {[%emt 0:01:53]} 4. e3 {[%emt 0:00:07]} Bd6 {[%emt 0:01:11]} 5. Nd2 {[%emt 0:00:38]} c5 {[%emt 0:01:55]} 6. Bg3 {[%emt 0:01:01]} Qc7 {[%emt 0:01:50]} 7. Ngf3 {[%emt 0:00:30]} Nbd7 {[%emt 0:01:25]} 8. Be2 {[%emt 0:01:39]} O-O {[%emt 0:01:17]} 9. O-O {[%emt 0:00:27]} Bxg3 {[%emt 0:06:23]} 10. hxg3 {[%emt 0:00:17]} e5 {[%emt 0:00:28]} 11. dxe5 {[%emt 0:02:15]} Nxe5 {[%emt 0:00:14]} 12. c4 {[%emt 0:00:55]} Rd8 {[%emt 0:11:54]} 13. cxd5 {[%emt 0:02:47]} Rxd5 {[%emt 0:06:34]} 14. Nxe5 {[%emt 0:01:36]} Qxe5 {[%emt 0:02:15]} 15. Bf3 {[%emt 0:03:29]} Rd8 {[%emt 0:04:00]} 16. Nc4 {[%emt 0:01:08]} Qc7 {[%emt 0:06:02]} 17. Qc2 {[%emt 0:03:10]} Be6 {[%emt 0:07:31]} 18. Rfd1 {[%emt 0:05:29]} Rab8 {[%emt 0:03:51]} 19. Rac1 {[%emt 0:01:32]} b6 {[%emt 0:08:02]} 20. Nd2 {[%emt 0:03:16]} Rbc8 {[%emt 0:03:48]} 21. Be2 {[%emt 0:03:23]} Qe7 {[%emt 0:04:10]} 22. a3 {[%emt 0:05:16]} Bg4 {[%emt 0:04:36]} 23. Nf3 {[%emt 0:03:21]} Rxd1+ {[%emt 0:02:15]} 24. Rxd1 {[%emt 0:00:15]} Rd8 {[%emt 0:01:24]} 25. Rxd8+ {[%emt 0:01:22]} Qxd8 {[%emt 0:00:08]} 26. Qa4 {[%emt 0:00:45]} Qc7 {[%emt 0:05:10]} 27. Bc4 {[%emt 0:02:14]} h6 {[%emt 0:03:35]} 28. Kf1 {[%emt 0:01:37]} Bd7 {[%emt 0:01:47]} 29. Qb3 {[%emt 0:00:08]} Be8 {[%emt 0:01:02]} 30. Ke2 {[%emt 0:01:56]} Kf8 {[%emt 0:00:42]} 31. Qc3 {[%emt 0:00:31]} Bc6 {[%emt 0:01:58]} 32. Qd3 {[%emt 0:02:19]} Be4 {[%emt 0:00:40]} 33. Qc3 {[%emt 0:01:41]} Bd5 {[%emt 0:02:03]} 34. Bxd5 {[%emt 0:00:51]} Nxd5 {[%emt 0:00:02]} 35. Qc4 {[%emt 0:00:28]} Qd6 {[%emt 0:01:57]} 36. g4 {[%emt 0:00:32]} Nf6 {[%emt 0:01:01]} 37. g5 {[%emt 0:01:25]} hxg5 {[%emt 0:00:35]} 38. Nxg5 {[%emt 0:00:07]} Qd5 {[%emt 0:01:20]} 39. Qxd5 {[%emt 0:06:20]} Nxd5 {[%emt 0:00:03]} 40. Kd3 {[%emt 0:00:09]} Ke7 {[%emt 0:02:31]} 41. Kc4 {[%emt 0:35:26]} Nc7 {[%emt 0:02:00]} 42. a4 {[%emt 0:00:00]} f5 {[%emt 0:12:46]} 43. f4 {[%emt 0:00:00]} Kd6 {[%emt 0:02:16]} 44. Nf7+ {[%emt 0:00:00]} Ke6 {[%emt 0:04:41]} 45. Ng5+ {[%emt 0:00:00]} Kd6 {[%emt 0:00:19]} 46. Kd3 {[%emt 0:00:00]} Nd5 {[%emt 0:01:30]} 47. g3 {[%emt 0:00:00]} a6 {[%emt 0:03:22]} 48. e4 {[%emt 0:00:00]} fxe4+ {[%emt 0:00:39]} 49. Nxe4+ {[%emt 0:00:00]} Kc6 {[%emt 0:00:43]} 50. f5 {[%emt 0:00:00]} Ne7 {[%emt 0:03:00]} 51. g4 {[%emt 0:00:00]} Kd5 {[%emt 0:02:25]} 52. Ke3 {[%emt 0:00:00]} Ke5 {[%emt 0:01:04]} 53. b3 {[%emt 0:00:00]} Nc6 {[%emt 0:02:00]} 54. Ng3 {[%emt 0:00:32]} g6 {[%emt 0:00:29]} 55. fxg6 {[%emt 0:03:57]} Kf6 {[%emt 0:00:02]} 56. Ne4+ {[%emt 0:04:39]} Kxg6 {[%emt 0:00:17]} 57. Kd2 {[%emt 0:00:37]} Na5 {[%emt 0:02:02]} 58. Kc3 {[%emt 0:00:28]} b5 {[%emt 0:00:23]} 59. Nxc5 {[%emt 0:00:25]} Nxb3 {[%emt 0:00:29]} 60. axb5 {[%emt 0:00:46]} Nxc5 {[%emt 0:00:22]} 61. bxa6 {[%emt 0:00:10]} Nxa6 {[%emt 0:00:08]} 62. g5 {[%emt 0:00:06]} Kxg5 {[%emt 0:00:09]} 1/2-1/2

[Event "Slovakia Open Piestany-A 2022"]
[Site "Piestany"]
[Date "2022.07.12"]
[Round "1.19"]
[White "Nadzamova, Viktoria"]
[Black "Czerw, Dawid"]
[Result "0-1"]
[ECO "A46"]
[WhiteElo "2133"]
[BlackElo "2391"]
[Annotator "ChessBase"]
[PlyCount "88"]
[EventDate "2022.07.12"]
[EventType "swiss"]
[EventCountry "SVK"]
[SourceTitle "playchess.com"]
[Source "ChessBase"]
[SourceQuality "1"]
[TimeControl "40/5400+30:1800+30"]

1. d4 {[%emt 0:00:06]} Nf6 {[%emt 0:00:16]} 2. g3 {[%emt 0:00:20]} e6 {[%emt 0:02:07]} 3. Bg2 {[%emt 0:00:47]} d5 {[%emt 0:00:06]} 4. Nf3 {[%emt 0:02:31]} b5 {[%emt 0:03:15]} 5. O-O {[%emt 0:03:57]} Bb7 {[%emt 0:01:17]} 6. b3 {[%emt 0:05:21]} Nbd7 {[%emt 0:01:06]} 7. Nbd2 {[%emt 0:05:46]} b4 {[%emt 0:06:24]} 8. Bb2 {[%emt 0:05:19]} Be7 {[%emt 0:01:14]} 9. c4 {[%emt 0:14:19]} bxc3 {[%emt 0:04:10]} 10. Bxc3 {[%emt 0:00:02]} c5 {[%emt 0:00:31]} 11. dxc5 {[%emt 0:02:11]} Nxc5 {[%emt 0:01:12]} 12. b4 {[%emt 0:02:10]} Ncd7 {[%emt 0:00:46]} 13. Qb3 {[%emt 0:05:16]} O-O {[%emt 0:01:04]} 14. Rfd1 {[%emt 0:03:37]} Rc8 {[%emt 0:02:25]} 15. Bd4 {[%emt 0:03:32]} a6 {[%emt 0:03:30]} 16. Qb2 {[%emt 0:06:36]} h6 {[%emt 0:05:16]} 17. Ne5 {[%emt 0:04:27]} Nxe5 {[%emt 0:01:48]} 18. Bxe5 {[%emt 0:00:01]} Qb6 {[%emt 0:03:18]} 19. Rab1 {[%emt 0:04:26]} Bc6 {[%emt 0:00:52]} 20. a3 {[%emt 0:06:30]} Rfd8 {[%emt 0:08:52]} 21. Nf3 {[%emt 0:01:11]} Ne8 {[%emt 0:03:24]} 22. Bd4 {[%emt 0:02:29]} Qb7 {[%emt 0:01:17]} 23. Ne5 {[%emt 0:01:25]} Ba4 {[%emt 0:01:10]} 24. Rdc1 {[%emt 0:00:37]} Bb5 {[%emt 0:02:36]} 25. Qa2 {[%emt 0:03:10]} Nd6 {[%emt 0:04:24]} 26. a4 {[%emt 0:02:05]} Be8 {[%emt 0:00:06]} 27. Nd3 {[%emt 0:00:13]} Nf5 {[%emt 0:01:37]} 28. Bc3 {[%emt 0:04:40]} Qa7 {[%emt 0:07:35]} 29. e4 {[%emt 0:06:38]} dxe4 {[%emt 0:05:00]} 30. Bxe4 {[%emt 0:00:02]} Nd4 {[%emt 0:02:23]} 31. Ne5 {[%emt 0:01:39]} Bg5 {[%emt 0:01:51]} 32. Bxd4 {[%emt 0:01:34]} Rxc1+ {[%emt 0:00:58]} 33. Rxc1 {[%emt 0:00:08]} Qxd4 {[%emt 0:00:12]} 34. Re1 {[%emt 0:00:29]} Qxb4 {[%emt 0:03:08]} 35. Nf3 {[%emt 0:02:55]} Qxa4 {[%emt 0:00:54]} 36. Qxa4 {[%emt 0:01:18]} Bxa4 {[%emt 0:00:06]} 37. Ra1 {[%emt 0:00:25]} Bb5 {[%emt 0:00:56]} 38. Nxg5 {[%emt 0:00:09]} hxg5 {[%emt 0:00:05]} 39. Bb7 {[%emt 0:00:27]} Rd7 {[%emt 0:01:09]} 40. Be4 {[%emt 0:00:48]} f5 {[%emt 0:00:31]} 41. Bf3 {[%emt 0:30:33]} Kf7 {[%emt 0:30:27]} 42. Rc1 {[%emt 0:00:00]} g4 {[%emt 0:00:00]} 43. Bd1 {[%emt 0:00:00]} Kf6 {[%emt 0:00:00]} 44. Bb3 {[%emt 0:00:00]} Rd3 {[%emt 0:00:00]} 0-1

[Event "Slovakia Open Piestany-A 2022"]
[Site "Piestany"]
[Date "2022.07.12"]
[Round "1.20"]
[White "Niedbala, Bartlomiej"]
[Black "Warchol, Kamil"]
[Result "1-0"]
[ECO "B60"]
[WhiteElo "2381"]
[BlackElo "2121"]
[Annotator "ChessBase"]
[PlyCount "63"]
[EventDate "2022.07.12"]
[EventType "swiss"]
[EventCountry "SVK"]
[SourceTitle "playchess.com"]
[Source "ChessBase"]
[SourceQuality "1"]
[TimeControl "40/5400+30:1800+30"]

1. e4 {[%emt 0:37:58]} c5 {[%emt 0:00:11]} 2. Nf3 {[%emt 0:00:55]} d6 {[%emt 0:00:11]} 3. d4 {[%emt 0:00:06]} cxd4 {[%emt 0:00:07]} 4. Nxd4 {[%emt 0:00:05]} Nf6 {[%emt 0:00:16]} 5. Nc3 {[%emt 0:00:07]} Nc6 {[%emt 0:00:06]} 6. Bg5 {[%emt 0:00:09]} Qb6 {[%emt 0:00:08]} 7. Nb3 {[%emt 0:01:22]} e6 {[%emt 0:02:20]} 8. Bf4 {[%emt 0:01:53]} Ne5 {[%emt 0:12:01]} 9. Be3 {[%emt 0:01:47]} Qc7 {[%emt 0:02:44]} 10. f4 {[%emt 0:00:10]} Nc6 {[%emt 0:00:30]} 11. g4 {[%emt 0:01:56]} h6 {[%emt 0:07:44]} 12. Qf3 {[%emt 0:05:52]} a6 {[%emt 0:05:39]} 13. h4 {[%emt 0:05:52]} Nd7 {[%emt 0:08:37]} 14. g5 {[%emt 0:03:45]} b5 {[%emt 0:02:21]} 15. g6 {[%emt 0:05:09]} fxg6 {[%emt 0:14:45]} 16. O-O-O {[%emt 0:02:33]} Rb8 {[%emt 0:07:59]} 17. Qg3 {[%emt 0:09:28]} Ne7 {[%emt 0:06:15]} 18. Bd3 {[%emt 0:04:59]} Nc5 {[%emt 0:02:43]} 19. Nxc5 {[%emt 0:01:22]} dxc5 {[%emt 0:00:24]} 20. e5 {[%emt 0:00:02]} Bb7 {[%emt 0:12:42]} 21. Bxb5+ {[%emt 0:00:26]} axb5 {[%emt 0:06:55]} 22. Nxb5 {[%emt 0:00:13]} Qc6 {[%emt 0:00:45]} 23. Nd6+ {[%emt 0:01:08]} Kd7 {[%emt 0:00:05]} 24. Nxb7+ {[%emt 0:02:09]} Nd5 {[%emt 0:00:08]} 25. c4 {[%emt 0:01:59]} Qxb7 {[%emt 0:01:32]} 26. Qg2 {[%emt 0:00:30]} Qa6 {[%emt 0:02:11]} 27. cxd5 {[%emt 0:00:13]} Qxa2 {[%emt 0:02:06]} 28. dxe6+ {[%emt 0:00:22]} Kc7 {[%emt 0:00:28]} 29. Rd7+ {[%emt 0:00:51]} Kb6 {[%emt 0:00:02]} 30. Qxg6 {[%emt 0:01:26]} Ka6 {[%emt 0:01:16]} 31. e7+ {[%emt 0:01:43]} Rb6 {[%emt 0:00:04]} 32. Qd3+ {[%emt 0:00:10]} 1-0

[Event "Slovakia Open Piestany-A 2022"]
[Site "Piestany"]
[Date "2022.07.12"]
[Round "1.21"]
[White "Soham Datar"]
[Black "Favaloro, Andrea"]
[Result "0-1"]
[ECO "C88"]
[WhiteElo "2111"]
[BlackElo "2361"]
[Annotator "ChessBase"]
[PlyCount "58"]
[EventDate "2022.07.12"]
[EventType "swiss"]
[EventCountry "SVK"]
[SourceTitle "playchess.com"]
[Source "ChessBase"]
[SourceQuality "1"]
[TimeControl "40/5400+30:1800+30"]

1. e4 {[%emt 0:00:12]} e5 {[%emt 0:01:11]} 2. Nf3 {[%emt 0:00:09]} Nc6 {[%emt 0:00:05]} 3. Bb5 {[%emt 0:00:34]} a6 {[%emt 0:00:18]} 4. Ba4 {[%emt 0:00:15]} Nf6 {[%emt 0:00:14]} 5. O-O {[%emt 0:00:07]} Be7 {[%emt 0:00:21]} 6. Re1 {[%emt 0:00:06]} b5 {[%emt 0:00:16]} 7. Bb3 {[%emt 0:00:07]} O-O {[%emt 0:00:43]} 8. h3 {[%emt 0:01:09]} Na5 {[%emt 0:04:09]} 9. Nxe5 {[%emt 0:07:41]} Nxb3 {[%emt 0:00:20]} 10. axb3 {[%emt 0:00:20]} Bb7 {[%emt 0:00:14]} 11. d3 {[%emt 0:00:22]} d5 {[%emt 0:00:38]} 12. exd5 {[%emt 0:00:29]} Qxd5 {[%emt 0:00:15]} 13. Qf3 {[%emt 0:23:34]} Bd6 {[%emt 0:00:52]} 14. Qxd5 {[%emt 0:00:16]} Nxd5 {[%emt 0:00:41]} 15. Bd2 {[%emt 0:06:40]} Rfe8 {[%emt 0:11:30]} 16. Nf3 {[%emt 0:01:15]} c5 {[%emt 0:12:52]} 17. c4 {[%emt 0:08:09]} Nc7 {[%emt 0:11:18]} 18. Nc3 {[%emt 0:01:48]} Red8 {[%emt 0:03:47]} 19. Ne4 {[%emt 0:01:50]} Bf8 {[%emt 0:01:58]} 20. Ba5 {[%emt 0:01:38]} Rdc8 {[%emt 0:06:06]} 21. Bxc7 {[%emt 0:04:10]} Rxc7 {[%emt 0:00:24]} 22. cxb5 {[%emt 0:00:07]} axb5 {[%emt 0:01:13]} 23. Rxa8 {[%emt 0:00:20]} Bxa8 {[%emt 0:00:11]} 24. Ra1 {[%emt 0:06:16]} Bd5 {[%emt 0:05:16]} 25. Ra5 {[%emt 0:02:55]} b4 {[%emt 0:08:31]} 26. Ned2 {[%emt 0:10:30]} Rd7 {[%emt 0:06:31]} 27. Ne5 {[%emt 0:05:39]} Re7 {[%emt 0:01:40]} 28. d4 {[%emt 0:02:01]} f6 {[%emt 0:01:51]} 29. Rxc5 {[%emt 0:00:58]} Rxe5 {[%emt 0:00:12]} 0-1

[Event "Slovakia Open Piestany-A 2022"]
[Site "Piestany"]
[Date "2022.07.11"]
[Round "1.22"]
[White "Marek, Matyas"]
[Black "Zdrazil, Patrik"]
[Result "1-0"]
[ECO "A00"]
[WhiteElo "2354"]
[BlackElo "2103"]
[Annotator "ChessBase"]
[PlyCount "59"]
[EventDate "2022.07.12"]
[EventType "swiss"]
[EventCountry "SVK"]
[SourceTitle "playchess.com"]
[Source "ChessBase"]
[SourceQuality "1"]
[TimeControl "40/5400+30:1800+30"]

1. Nf3 Nf6 2. g3 g6 3. Bg2 Bg7 4. O-O O-O 5. d3 d6 6. e4 e5 7. Nbd2 Nc6 8. Re1 Re8 9. c3 h6 10. b4 d5 11. Bb2 dxe4 12. dxe4 b6 13. Qe2 Bb7 14. a4 a5 15. b5 Nb8 16. Red1 Nbd7 17. Ne1 c6 18. Nc4 Qc7 19. Nd6 Re6 20. Nxb7 Qxb7 21. Nc2 Ree8 22. Ne3 h5 23. Nc4 Bf8 24. Nd6 Bxd6 25. Rxd6 c5 26. Rad1 Kg7 27. c4 Re7 28. f4 Ne8 29. R6d5 f6 30. Bh3 1-0